bitfinex-derivatives/quotes_ETHF0:USTF0_20250501
["timestamp","ask_amount","ask_price","bid_price","bid_amount"]
[1746066355137,3.5268,1813.3,1813.2,4.30973]
[1746066361340,3.5268,1813.3,1813.2,5.12783]
[1746066361540,3.5268,1813.3,1813.2,0.8181]
[1746066361732,1.10296,1813.2,1813.1,0.8217]
[1746066361934,2.83646,1813.2,1813.1,5.13143]
[1746066362342,2.83646,1813.2,1813.1,6.23445]
[1746066362537,2.83646,1813.2,1813.1,5.13143]
[1746066364042,1.10302,1813.1,1813.0,7.75116]
[1746066364245,2.83652,1813.1,1813.0,7.75116]
[1746066364433,2.83652,1813.1,1813.0,13.78179]
[1746066365548,2.83652,1813.1,1813.0,5.12783]
[1746066365844,2.83652,1813.1,1813.0,4.30973]
[1746066366246,3.65342,1813.1,1813.0,4.30973]
[1746066370144,1.7335,1813.1,1813.0,5.41281]
[1746066370747,3.2078,1813.2,1813.1,1.10302]
[1746066370942,1.5793,1813.4,1813.3,1.1029]
[1746066371351,1.5793,1813.4,1813.3,7.06543]
[1746066371646,2.68214,1813.4,1813.3,7.06543]
[1746066371948,1.5793,1813.4,1813.3,7.06543]
[1746066372951,2.68214,1813.4,1813.3,7.06543]
[1746066373447,18.80617508,1814.0,1813.3,14.17033]
[1746066373749,1.10266,1813.7,1813.6,1.10268]
[1746066373949,1.10266,1813.7,1813.6,2.74788]
[1746066374150,1.10266,1813.7,1813.6,5.95493]
[1746066374351,1.10278,1813.5,1813.4,2.74802]
[1746066374747,1.10278,1813.5,1813.4,7.05775]
[1746066374946,2.76208,1813.5,1813.4,7.05775]
[1746066376452,2.76208,1813.5,1813.4,5.95493]
[1746066377049,2.76208,1813.5,1813.4,7.05777]
[1746066378657,2.76208,1813.5,1813.4,5.95493]
[1746066378949,2.76208,1813.5,1813.4,7.05777]
[1746066379254,1.10284,1813.4,1813.3,1.10288]
[1746066379440,1.6629,1813.4,1813.3,1.89878]
[1746066379642,1.6629,1813.4,1813.3,6.20851]
[1746066385450,1.6629,1813.4,1813.3,7.81951]
[1746066393859,2.76574,1813.4,1813.3,1.10288]
[1746066395766,1.6629,1813.4,1813.3,1.10288]
[1746066396966,2.76574,1813.4,1813.3,1.10288]
[1746066398265,1.6629,1813.4,1813.1,1.10301]
[1746066398565,1.10296,1813.2,1813.1,5.41274]
[1746066398962,2.73056,1813.2,1813.1,5.41274]
[1746066402466,2.75682,1813.6,1813.1,5.41274]
[1746066402671,3.613,1814.1,1813.5,4.30973]
[1746066402863,1.10264,1813.8,1813.7,4.30973]
[1746066403171,2.68758,1813.9,1813.7,4.30973]
[1746066403472,12.84212508,1814.4,1814.3,1.10229]
[1746066403667,14.42712508,1814.4,1814.3,8.61982]
[1746066403865,14.42712508,1814.4,1814.3,49.83928151]
[1746066405765,14.42712508,1814.4,1814.3,49.41982]
[1746066406464,12.84212508,1814.4,1814.3,54.41982]
[1746066406765,4.3097,1815.0,1814.7,1.10202]
[1746066406766,1.7266,1814.9,1814.7,1.10202]
[1746066406967,1.10193,1814.9,1814.7,5.41175]
[1746066407166,0.8021,1815.0,1814.7,1.10202]
[1746066407470,1.10201,1814.8,1814.6,1.10207]
[1746066407875,1.10205,1814.7,1814.5,4.30994]
[1746066408070,1.10223,1814.4,1814.3,44.0078]
[1746066408375,1.10223,1814.4,1814.3,40.8]
[1746066408568,3.9994,1814.6,1814.3,40.8]
[1746066408775,5.10153,1814.6,1814.4,1.1022]
[1746066408966,1.10217,1814.5,1814.3,41.90226]
[1746066409166,5.10155,1814.6,1814.4,1.10222]
[1746066409369,3.9994,1814.6,1814.3,45.10973]
[1746066409672,0.7916,1814.6,1814.5,1.10217]
[1746066410075,1.89371,1814.6,1814.4,1.10219]
[1746066410372,1.89371,1814.6,1814.4,5.41192]
[1746066410977,0.7916,1814.6,1814.4,4.30973]
[1746066411476,0.7916,1814.6,1814.5,1.10217]
[1746066411772,1.89371,1814.6,1814.4,5.41192]
[1746066412380,1.89371,1814.6,1814.5,1.10217]
[1746066413170,3.612,1814.7,1814.5,1.10217]
[1746066413171,4.71409,1814.7,1814.5,1.10217]
[1746066413479,1.10205,1814.7,1814.6,1.10211]
[1746066413776,1.10205,1814.7,1814.5,1.10213]
[1746066413979,1.10211,1814.6,1814.5,5.41186]
[1746066414378,1.1021,1814.7,1814.5,5.41186]
[1746066414678,1.1021,1814.7,1814.5,5.41188]
[1746066415974,1.10211,1814.6,1814.4,4.30999]
[1746066416281,1.10211,1814.6,1814.5,4.30973]
[1746066416580,1.10215,1814.6,1814.4,4.30999]
[1746066416773,1.10215,1814.6,1814.5,4.30973]
[1746066416966,1.10215,1814.6,1814.4,4.30999]
[1746066419578,1.10215,1814.6,1814.5,1.10217]
[1746066420482,1.10215,1814.6,1814.4,4.30998]
[1746066420780,1.10215,1814.6,1814.5,4.30973]
[1746066421081,1.10217,1814.5,1814.4,1.10218]
[1746066421378,1.10217,1814.5,1814.4,5.41191]
[1746066421972,1.10223,1814.4,1814.3,42.70425]
[1746066422173,1.10222,1814.5,1814.4,5.41196]
[1746066422572,2.74592,1814.5,1814.4,1.10223]
[1746066423584,1.6437,1814.5,1814.4,5.41196]
[1746066424681,0.7843,1814.9,1814.7,1.10205]
[1746066424871,1.5885,1814.8,1814.7,1.10205]
[1746066425076,1.5885,1814.8,1814.7,4.30985]
[1746066425271,1.96652,1815.3,1814.8,2.75498]
[1746066425484,1.5885,1815.2,1815.1,1.10181]
[1746066425882,1.5885,1815.2,1815.1,5.41154]
[1746066426778,14.45947135,1815.7,1815.6,1.1015]
[1746066426988,14.45947135,1815.7,1815.6,5.41123]
[1746066427189,12.58592135,1815.7,1815.6,46.21123]
[1746066427487,12.58592135,1815.7,1815.6,49.59903]
[1746066428079,1.6698,1815.9,1815.6,49.59903]
[1746066428286,1.6698,1815.9,1815.8,5.41111]
[1746066428486,1.6698,1815.9,1815.8,4.30973]
[1746066428681,2.77114,1815.9,1815.7,1.1014]
[1746066428883,1.10144,1815.7,1815.6,40.8]
[1746066429084,1.89092,1815.8,1815.6,40.8]
[1746066429283,1.6866,1815.7,1815.6,46.21123]
[1746066429490,1.6866,1815.7,1815.6,41.9015]
[1746066429690,1.6866,1815.7,1815.6,46.21123]
[1746066430090,1.6866,1815.7,1815.6,47.79133]
[1746066430798,1.6866,1815.7,1815.6,40.8]
[1746066430995,1.6866,1815.7,1815.6,41.9015]
[1746066431191,1.6866,1815.7,1815.6,46.21123]
[1746066431388,1.6866,1815.7,1815.6,48.59373]
[1746066435997,3.606,1816.0,1815.9,1.10132]
[1746066436297,5.2686,1816.0,1815.9,1.10132]
[1746066437395,6.36988,1816.0,1815.8,1.10134]
[1746066437599,1.6626,1815.9,1815.8,5.41111]
[1746066437792,1.6626,1815.9,1815.8,1.10138]
[1746066439501,2.76394,1815.9,1815.7,1.1014]
[1746066439692,2.4865,1815.9,1815.7,5.41116]
[1746066439891,1.6377,1815.8,1815.7,5.41116]
[1746066440401,2.73908,1815.8,1815.7,5.41116]
[1746066440593,1.6377,1815.8,1815.7,5.41116]
[1746066441397,2.73908,1815.8,1815.7,5.41116]
[1746066441890,1.10144,1815.7,1815.6,40.8]
[1746066442096,2.74194,1815.7,1815.6,40.8]
[1746066442887,1.10156,1815.5,1815.4,1.10162]
[1746066443395,1.10156,1815.5,1815.4,41.90162]
[1746066443595,1.92826,1815.5,1815.4,40.8]
[1746066444594,2.74076,1815.5,1815.4,40.8]
[1746066445800,2.74076,1815.5,1815.4,41.90163]
[1746066446003,1.6392,1815.5,1815.4,41.90163]
[1746066446703,2.74076,1815.5,1815.4,41.90163]
[1746066446904,4.35386,1815.5,1815.4,41.90163]
[1746066447103,4.35386,1815.5,1815.4,40.8]
[1746066447306,4.35386,1815.5,1815.4,41.90163]
[1746066447504,4.35386,1815.5,1815.4,40.8]
[1746066449011,4.35386,1815.5,1815.4,41.90163]
[1746066449311,4.35386,1815.5,1815.4,40.8]
[1746066450812,4.35386,1815.5,1815.4,41.90163]
[1746066451907,4.35386,1815.5,1815.4,40.8]
[1746066453311,1.10175,1815.2,1815.1,1.618]
[1746066453511,1.10169,1815.3,1815.2,4.30973]
[1746066453909,1.10175,1815.2,1815.1,41.9018]
[1746066454107,1.10175,1815.2,1815.1,40.8]
[1746066454317,1.10175,1815.2,1815.1,45.10973]
[1746066454507,2.76355,1815.2,1815.1,45.10973]
[1746066455107,6.55155,1815.2,1815.1,45.10973]
[1746066456812,6.55155,1815.2,1815.1,40.8]
[1746066459917,6.55155,1815.2,1815.1,41.90181]
[1746066460423,3.788,1815.2,1815.1,46.21154]
[1746066460608,3.788,1815.2,1815.1,47.83574]
[1746066462314,3.788,1815.2,1815.1,52.83574]
[1746066463210,2.77303,1815.4,1815.3,1.10169]
[1746066463415,2.77303,1815.4,1815.3,5.41142]
[1746066463907,2.77303,1815.4,1815.3,6.23562]
[1746066464107,5.4594,1815.4,1815.3,6.23562]
[1746066464716,5.4594,1815.4,1815.3,7.86552]
[1746066465109,3.788,1815.4,1815.3,7.86552]
[1746066466118,2.77611,1815.6,1815.5,1.10156]
[1746066466319,1.10151,1815.6,1815.5,46.21129]
[1746066466917,1.10151,1815.6,1815.5,40.8]
[1746066467116,4.88951,1815.6,1815.5,40.8]
[1746066467618,1.10157,1815.5,1815.4,1.10158]
[1746066467919,1.10157,1815.5,1815.4,5.41131]
[1746066468120,1.10156,1815.6,1815.5,1.10156]
[1746066468324,3.605,1815.7,1815.4,45.10973]
[1746066468325,1.10156,1815.5,1815.4,40.8]
[1746066468515,1.10163,1815.4,1815.3,0.8242]
[1746066468713,1.10163,1815.4,1815.3,5.13393]
[1746066468915,1.10163,1815.4,1815.3,47.03562]
[1746066469213,4.88963,1815.4,1815.3,47.03562]
[1746066469613,3.788,1815.4,1815.3,47.03562]
[1746066472320,3.788,1815.4,1815.3,48.67852]
[1746066475921,4.88963,1815.4,1815.3,47.03562]
[1746066476119,3.788,1815.4,1815.3,47.03562]
[1746066477223,4.88963,1815.4,1815.3,47.03562]
[1746066478818,4.88963,1815.4,1815.3,46.21142]
[1746066479019,4.88963,1815.4,1815.3,40.8]
[1746066479425,4.88963,1815.4,1815.3,41.90169]
[1746066484926,7.41083,1815.4,1815.3,41.90169]
[1746066486529,7.41083,1815.4,1815.3,40.8]
[1746066491330,7.41083,1815.4,1815.3,41.90169]
[1746066491623,7.41083,1815.4,1815.3,46.21142]
[1746066491830,5.468,1815.4,1815.3,46.21142]
[1746066492026,6.56963,1815.4,1815.3,46.21142]
[1746066493729,5.468,1815.4,1815.3,46.21142]
[1746066494029,3.788,1815.4,1815.3,46.21142]
[1746066494238,3.788,1815.4,1815.3,47.92292]
[1746066495227,1.6437,1815.6,1815.5,1.10156]
[1746066495531,1.6437,1815.6,1815.5,5.41129]
[1746066495831,1.6437,1815.6,1815.5,46.21129]
[1746066496128,5.4317,1815.6,1815.5,49.46349]
[1746066497032,3.788,1815.6,1815.5,49.46349]
[1746066499223,1.6718,1815.7,1815.5,49.46349]
[1746066499224,1.6718,1815.7,1815.6,1.1015]
[1746066499423,1.6718,1815.7,1815.6,7.06453]
[1746066500327,5.4598,1815.7,1815.6,7.06453]
[1746066500529,1.1015,1815.6,1815.5,43.4911]
[1746066500731,4.382,1815.6,1815.5,40.8]
[1746066500926,7.5898,1815.6,1815.5,40.8]
[1746066501229,11.3778,1815.6,1815.5,40.8]
[1746066501429,8.17,1815.6,1815.5,40.8]
[1746066506131,8.17,1815.6,1815.3,1.6428]
[1746066506432,1.10163,1815.4,1815.3,0.8284]
[1746066506628,1.10163,1815.4,1815.3,41.6284]
[1746066506827,1.10163,1815.4,1815.3,45.10973]
[1746066507137,4.88963,1815.4,1815.3,45.10973]
[1746066510838,15.6028,1815.4,1814.9,3.2078]
[1746066511137,1.10181,1815.1,1815.0,4.30973]
[1746066511337,1.10181,1815.1,1815.0,45.10973]
[1746066511538,1.10187,1815.0,1814.9,1.6345]
[1746066511934,1.10187,1815.0,1814.9,46.74423]
[1746066512130,4.88987,1815.0,1814.9,46.74423]
[1746066512333,9.75056,1815.0,1814.6,11.59567831]
[1746066512632,3.58353,1814.9,1814.8,4.30973]
[1746066512834,3.58353,1814.9,1814.8,45.10973]
[1746066513231,7.37153,1814.9,1814.8,45.10973]
[1746066513938,7.37153,1814.9,1814.8,4.30973]
[1746066514938,1.10205,1814.7,1814.6,4.8846]
[1746066515339,1.10205,1814.7,1814.6,10.29644]
[1746066515539,2.75365,1814.7,1814.6,5.98653]
[1746066516339,6.54165,1814.7,1814.6,5.98653]
[1746066516735,6.54165,1814.7,1814.6,46.78653]
[1746066518434,6.54165,1814.7,1814.6,45.10973]
[1746066522141,6.54165,1814.7,1814.6,46.21184]
[1746066522344,5.4396,1814.7,1814.6,46.21184]
[1746066523347,6.54165,1814.7,1814.6,46.21184]
[1746066526452,4.89005,1814.7,1814.6,46.21184]
[1746066527138,4.89005,1814.7,1814.6,45.10973]
[1746066527342,4.89005,1814.7,1814.6,46.21184]
[1746066528753,3.788,1814.7,1814.6,46.21184]
[1746066530648,3.788,1814.7,1814.6,49.41964]
[1746066531351,2.72547,1814.9,1814.8,1.10199]
[1746066531552,2.72547,1814.9,1814.8,5.41172]
[1746066532049,6.51347,1814.9,1814.8,5.41172]
[1746066532255,3.788,1814.9,1814.8,8.61952]
[1746066532459,3.788,1814.9,1814.8,10.24032]
[1746066532754,3.788,1814.9,1814.8,15.24032]
[1746066533148,2.72076,1815.2,1815.1,1.10181]
[1746066533348,2.72076,1815.2,1815.1,5.41154]
[1746066533545,1.619,1815.2,1815.1,5.41154]
[1746066534154,5.407,1815.2,1815.1,5.41154]
[1746066534355,3.788,1815.2,1815.1,7.03234]
[1746066535155,2.72061,1815.5,1815.3,1.10164]
[1746066535356,2.72061,1815.5,1815.4,4.30973]
[1746066535357,2.72056,1815.5,1815.4,4.30973]
[1746066535560,1.619,1815.5,1815.4,5.41136]
[1746066535758,1.619,1815.5,1815.4,1.10163]
[1746066535959,2.72056,1815.5,1815.4,1.10163]
[1746066536163,6.50856,1815.5,1815.4,1.89913]
[1746066536758,5.407,1815.5,1815.4,1.89913]
[1746066537366,6.50856,1815.5,1815.4,0.7975]
[1746066537858,6.50856,1815.5,1815.4,5.10723]
[1746066539061,6.50856,1815.5,1815.4,6.20886]
[1746066541357,8.6148,1815.5,1815.2,3.2078]
[1746066541562,1.10169,1815.3,1815.2,1.10172]
[1746066542062,5.3634,1815.3,1815.2,1.10172]
[1746066543961,5.3634,1815.3,1815.2,5.41145]
[1746066545256,5.3634,1815.3,1815.2,7.12055]
[1746066545664,3.788,1815.3,1815.2,7.12055]
[1746066546056,2.72267,1815.5,1815.4,1.10163]
[1746066546252,2.72267,1815.5,1815.4,5.41136]
[1746066547061,6.51067,1815.5,1815.4,5.41136]
[1746066548668,5.4091,1815.5,1815.4,5.41136]
[1746066549769,5.4091,1815.5,1815.4,7.11166]
[1746066551369,5.4091,1815.5,1815.4,5.41136]
[1746066553170,5.4091,1815.5,1815.4,7.06596]
[1746066554272,3.788,1815.5,1815.4,7.06596]
[1746066555271,1.6652,1815.6,1815.5,1.10156]
[1746066555471,1.6652,1815.6,1815.5,10.35349]
[1746066557173,1.6652,1815.6,1815.5,51.15349]
[1746066558469,2.7667,1815.6,1815.5,48.31753]
[1746066558665,2.7667,1815.6,1815.5,40.8]
[1746066559272,6.5547,1815.6,1815.5,40.8]
[1746066559966,6.5547,1815.6,1815.5,41.90156]
[1746066560167,5.4532,1815.6,1815.5,41.90156]
[1746066560873,6.5547,1815.6,1815.5,40.8]
[1746066561173,6.5547,1815.6,1815.5,41.90156]
[1746066561370,6.5547,1815.6,1815.5,40.8]
[1746066561671,6.5547,1815.6,1815.5,41.90156]
[1746066562073,6.5547,1815.6,1815.5,40.8]
[1746066562271,6.5547,1815.6,1815.5,41.90156]
[1746066565779,6.5547,1815.6,1815.5,40.8]
[1746066567166,6.5547,1815.6,1815.5,41.90156]
[1746066567777,6.5547,1815.6,1815.5,46.21129]
[1746066568582,6.5547,1815.6,1815.5,45.10973]
[1746066568876,6.5547,1815.6,1815.5,40.8]
[1746066571180,6.5547,1815.6,1815.5,46.21129]
[1746066574582,6.5547,1815.6,1815.5,45.10973]
[1746066575885,6.5547,1815.6,1815.5,46.21129]
[1746066580883,6.5547,1815.6,1815.5,45.10973]
[1746066581487,6.5547,1815.6,1815.5,46.21129]
[1746066582387,6.5547,1815.6,1815.5,45.10973]
[1746066583383,6.5547,1815.6,1815.5,40.8]
[1746066583588,9.7625,1815.6,1815.5,40.8]
[1746066584287,3.788,1815.6,1815.5,46.21129]
[1746066584488,3.788,1815.6,1815.5,47.78439]
[1746066585290,1.10145,1815.7,1815.6,1.1015]
[1746066585483,2.82142,1815.8,1815.7,1.10144]
[1746066585684,2.82142,1815.8,1815.7,5.41117]
[1746066585987,2.82142,1815.8,1815.7,6.98427]
[1746066586179,5.508,1815.8,1815.7,6.98427]
[1746066586786,6.60938,1815.8,1815.7,6.98427]
[1746066586988,5.508,1815.8,1815.7,6.98427]
[1746066587892,6.60938,1815.8,1815.7,6.98427]
[1746066588190,5.508,1815.8,1815.7,6.98427]
[1746066588889,6.60938,1815.8,1815.7,6.98427]
[1746066590781,5.508,1815.8,1815.7,6.98427]
[1746066592192,1.72,1815.8,1815.7,6.98427]
[1746066593095,1.1013,1816.0,1815.7,5.88283]
[1746066593394,2.72571,1816.0,1815.9,5.41105]
[1746066593586,1.6244,1816.0,1815.9,5.41105]
[1746066593786,1.10126,1816.0,1815.9,5.94663]
[1746066594190,4.88926,1816.0,1815.9,1.6369]
[1746066594388,6.48016,1816.0,1815.9,1.6369]
[1746066594590,1.10132,1815.9,1815.8,1.10134]
[1746066594895,1.6244,1815.9,1815.8,1.10134]
[1746066595192,5.4124,1815.9,1815.8,5.41107]
[1746066595594,6.51372,1815.9,1815.8,5.41107]
[1746066595996,5.4124,1815.9,1815.8,5.41107]
[1746066597087,5.4124,1815.9,1815.8,7.13927]
[1746066599096,1.6244,1815.9,1815.8,7.13927]
[1746066600400,1.6244,1815.9,1815.6,3.2078]
[1746066600698,1.1015,1815.6,1815.5,40.8]
[1746066601098,4.8895,1815.6,1815.5,40.8]
[1746066601898,4.8895,1815.6,1815.5,41.90156]
[1746066602492,3.788,1815.6,1815.5,41.90156]
[1746066603299,3.788,1815.6,1815.5,51.21129]
[1746066603501,3.788,1815.6,1815.5,52.81679]
[1746066604105,1.6581,1815.9,1815.8,1.10138]
[1746066604294,1.6581,1815.9,1815.8,5.41111]
[1746066604901,1.6581,1815.9,1815.8,7.01661]
[1746066606304,3.2111,1816.5,1815.8,10.91523]
[1746066606505,1.6322,1816.2,1816.1,1.1012]
[1746066606709,1.6322,1816.2,1816.1,4.4068]
[1746066606901,1.6322,1816.2,1816.1,8.71653]
[1746066610401,1.6322,1816.2,1816.1,7.08403]
[1746066610606,1.6322,1816.2,1816.1,5.41093]
[1746066610905,1.6322,1816.2,1816.0,6.8078]
[1746066610906,1.1012,1816.1,1815.8,9.0378]
[1746066611207,2.5597,1816.0,1815.9,5.41105]
[1746066612807,1.6906,1816.0,1815.9,5.41105]
[1746066613004,1.6906,1816.0,1815.9,7.91515]
[1746066614703,1.6906,1816.0,1815.9,3.60542]
[1746066615006,1.6906,1816.0,1815.9,7.91515]
[1746066616301,1.10105,1816.4,1816.0,2.75315]
[1746066616505,1.6423,1816.4,1816.3,1.10108]
[1746066617208,5.4303,1816.4,1816.3,1.10108]
[1746066624917,1.10108,1816.3,1816.2,3.01224]
[1746066625112,4.35538,1816.3,1816.2,3.01224]
[1746066625416,4.35538,1816.3,1816.2,1.10114]
[1746066626115,8.14338,1816.3,1816.2,1.10114]
[1746066626917,7.0423,1816.3,1816.2,1.10114]
[1746066628312,8.14338,1816.3,1816.2,1.10114]
[1746066628919,1.10114,1816.2,1816.1,1.9112]
[1746066629119,6.54254,1816.2,1816.1,1.9112]
[1746066630025,1.10138,1815.8,1815.7,4.30921]
[1746066630418,1.10137,1815.9,1815.8,1.10137]
[1746066630615,1.10137,1815.9,1815.8,5.4111]
[1746066630815,1.89317,1815.9,1815.8,1.10137]
[1746066631021,1.10138,1815.8,1815.7,4.3092]
[1746066631413,1.10138,1815.8,1815.7,8.61893]
[1746066632122,4.88938,1815.8,1815.7,5.41113]
[1746066633123,3.788,1815.8,1815.7,5.41113]
[1746066633320,5.3968,1815.8,1815.7,5.41113]
[1746066633623,1.1015,1815.6,1815.5,48.40091]
[1746066633824,3.53027,1815.7,1815.6,5.41122]
[1746066634227,1.1015,1815.6,1815.5,45.10932]
[1746066634419,2.7103,1815.6,1815.5,49.41905]
[1746066634619,1.6088,1815.6,1815.5,49.41905]
[1746066635122,5.3968,1815.6,1815.5,49.41905]
[1746066642936,3.788,1815.6,1815.5,49.41905]
[1746066643234,0.7918,1815.9,1815.8,1.10138]
[1746066643737,2.4429,1815.9,1815.8,1.10138]
[1746066644128,7.33222,1815.9,1815.8,1.10138]
[1746066644345,5.4391,1815.9,1815.8,5.41111]
[1746066644649,3.788,1815.9,1815.8,7.11251]
[1746066645151,0.8279,1816.0,1815.9,1.10132]
[1746066645451,2.526,1816.0,1815.9,6.19695]
[1746066646243,5.4861,1816.0,1815.9,6.19695]
[1746066646748,3.788,1816.0,1815.9,6.19695]
[1746066646949,3.788,1816.0,1815.9,9.40475]
[1746066648154,5.2951,1816.2,1816.1,1.1012]
[1746066648349,5.2951,1816.2,1816.1,5.41093]
[1746066648548,1.6981,1816.2,1816.1,5.41093]
[1746066648743,1.6981,1816.2,1816.1,7.01193]
[1746066649141,5.4861,1816.2,1816.1,7.01193]
[1746066649545,3.788,1816.2,1816.1,7.01193]
[1746066649849,3.788,1816.2,1816.1,10.21973]
[1746066650252,4.8135,1816.5,1816.4,1.10102]
[1746066651151,8.6015,1816.5,1816.4,1.10102]
[1746066651952,8.6015,1816.5,1816.4,1.89812]
[1746066652351,5.3937,1816.5,1816.4,1.89812]
[1746066652855,5.3937,1816.5,1816.4,6.20785]
[1746066653045,5.3937,1816.5,1816.4,7.89165]
[1746066654652,9.70246,1816.5,1816.4,4.30973]
[1746066654948,1.10102,1816.4,1816.1,3.2078]
[1746066655155,1.6475,1816.4,1816.3,1.10103]
[1746066656247,5.4355,1816.4,1816.3,1.10103]
[1746066656546,5.4355,1816.4,1816.3,5.41076]
[1746066656744,5.4355,1816.4,1816.3,6.23226]
[1746066660543,6.53652,1816.4,1816.3,5.41076]
[1746066660760,5.4355,1816.4,1816.3,5.41076]
[1746066662058,5.4355,1816.4,1816.3,6.20246]
[1746066665665,6.53652,1816.4,1816.3,6.20246]
[1746066666055,6.53652,1816.4,1816.3,5.41076]
[1746066666256,1.10108,1816.3,1816.2,1.10109]
[1746066666460,1.10119,1816.2,1816.0,1.10121]
[1746066666660,0.8226,1816.3,1816.2,1.10114]
[1746066666871,4.6281,1816.4,1816.3,1.10108]
[1746066667163,0.0033,1816.5,1816.3,1.10108]
[1746066667164,1.6626,1816.5,1816.4,1.10102]
[1746066667364,1.6626,1816.5,1816.4,5.41075]
[1746066667665,1.6626,1816.5,1816.4,7.94235]
[1746066668269,5.4506,1816.5,1816.4,7.94235]
[1746066673970,5.4506,1816.5,1816.4,6.27565]
[1746066675271,3.7913,1816.5,1816.4,6.27565]
[1746066675664,2.45981,1816.5,1816.4,16.51525]
[1746066675967,1e-05,1816.5,1816.4,57.31525]
[1746066676169,1.6104,1817.0,1816.9,1.09742]
[1746066676370,1.6104,1817.0,1816.9,5.40715]
[1746066676771,2.71106,1817.0,1816.9,5.40715]
[1746066677273,1.6104,1817.0,1816.9,5.40715]
[1746066677968,9.8182,1817.0,1816.5,4.076]
[1746066678158,9.8182,1817.0,1816.5,3.2078]
[1746066678159,1.1009,1816.6,1816.5,3.2078]
[1746066678357,1.10087,1816.7,1816.5,7.51423]
[1746066678561,2.7907,1816.6,1816.5,5.40739]
[1746066678763,2.7907,1816.6,1816.5,1.10096]
[1746066678971,2.7907,1816.6,1816.5,5.40739]
[1746066679174,6.5787,1816.6,1816.5,5.40739]
[1746066679865,6.5787,1816.6,1816.5,4.30643]
[1746066680065,6.5787,1816.6,1816.5,5.40739]
[1746066681170,5.4778,1816.6,1816.4,43.2506]
[1746066681374,2.67766,1816.5,1816.4,40.8]
[1746066681575,2.67766,1816.5,1816.2,5.83]
[1746066681576,1.5767,1816.5,1816.2,5.83]
[1746066681772,4.9177,1816.4,1816.0,1.10124]
[1746066682076,1.10135,1815.9,1815.8,1.10137]
[1746066682270,1.10135,1815.9,1815.8,4.30643]
[1746066682571,1.10135,1815.9,1815.8,40.8]
[1746066682872,1.10135,1815.9,1815.8,41.90138]
[1746066683071,2.8112,1816.0,1815.8,41.90138]
[1746066683272,5.4979,1815.9,1815.8,41.90138]
[1746066683578,6.59922,1815.9,1815.8,41.90138]
[1746066683877,6.59922,1815.9,1815.8,40.8]
[1746066685565,1.10144,1815.7,1815.6,5.8267]
[1746066685764,1.10144,1815.7,1815.6,10.13313]
[1746066685969,1.10144,1815.7,1815.6,52.03463]
[1746066686169,4.88944,1815.7,1815.6,50.93313]
[1746066687381,6.54164,1815.7,1815.2,7.665]
[1746066687680,1.10161,1815.5,1815.4,4.30643]
[1746066688080,1.10161,1815.5,1815.3,40.8]
[1746066688081,1.10163,1815.4,1815.3,40.8]
[1746066688783,1.10173,1815.3,1815.1,1.10178]
[1746066688973,1.6312,1815.2,1815.1,5.40821]
[1746066689175,6.52095,1815.2,1815.1,45.10643]
[1746066689375,6.52095,1815.2,1815.1,41.90181]
[1746066689576,5.4192,1815.2,1815.1,41.90181]
[1746066689882,5.4192,1815.2,1815.1,40.8]
[1746066690182,6.52095,1815.2,1815.1,41.90181]
[1746066690373,6.52095,1815.2,1815.1,40.8]
[1746066690871,7.34595,1815.2,1815.1,40.8]
[1746066691073,6.2442,1815.2,1815.1,41.90181]
[1746066691269,1.10191,1815.0,1814.8,1.10196]
[1746066691473,1.10191,1815.0,1814.9,4.30643]
[1746066691679,1.10191,1815.0,1814.9,45.10643]
[1746066692075,2.67671,1815.0,1814.9,45.10643]
[1746066692378,6.46471,1815.0,1814.9,45.10643]
[1746066692984,6.46471,1815.0,1814.9,40.8]
[1746066693984,8.1175,1815.0,1814.6,3.2078]
[1746066694175,1.10205,1814.7,1814.6,8.61633]
[1746066694581,1.10205,1814.7,1814.6,49.41633]
[1746066694779,2.70305,1814.7,1814.6,49.41633]
[1746066695183,5.389,1814.7,1814.6,49.41633]
[1746066696383,5.389,1814.7,1814.6,46.20853]
[1746066697580,6.49105,1814.7,1814.6,46.20853]
[1746066697781,3.788,1814.7,1814.6,46.20853]
[1746066698081,4.69494,1814.9,1814.8,1.10199]
[1746066698280,4.69494,1814.9,1814.8,5.40842]
[1746066698482,4.69494,1814.9,1814.8,4.30643]
[1746066698680,4.69494,1814.9,1814.6,40.8]
[1746066698869,1.10205,1814.7,1814.6,40.8]
[1746066699274,1.10205,1814.7,1814.6,45.10643]
[1746066699483,2.69645,1814.7,1814.6,45.10643]
[1746066699683,2.69645,1814.7,1814.6,46.20854]
[1746066700084,5.3824,1814.7,1814.6,46.20854]
[1746066700291,5.3824,1814.7,1814.6,47.82234]
[1746066703082,5.3824,1814.7,1814.6,52.82234]
[1746066703083,3.788,1814.7,1814.6,52.82234]
[1746066703287,2.75003,1815.1,1815.0,1.10187]
[1746066703488,1.6482,1815.1,1815.0,5.4083]
[1746066703689,1.1017,1815.3,1815.2,1.10171]
[1746066703986,2.7499,1815.3,1815.2,4.30643]
[1746066704187,6.5379,1815.3,1815.2,4.30643]
[1746066704883,1.10175,1815.2,1815.1,1.97196]
[1746066705084,2.74995,1815.2,1815.1,1.97196]